{"text_format":"3","workbook":"xlsx","n_sheets":8,"sheets":["Aanwijzingen","Vaste klanten","Incidentele klanten","Potentiële klanten","Q1-netwerkplan","Q2-netwerkplan","Q3-netwerkplan","Q4-netwerkplan"],"not_rendered":{"defined_names":7},"read":"whole","date_system":"1900"}

{"sheet":"Aanwijzingen","index":0,"n_rows":17,"n_cols":5,"rows_kept":17,"merged":[[0,0,0,2],[1,1,1,6],[2,1,2,6],[3,1,3,6],[4,1,4,6],[5,1,5,6],[6,1,6,6],[7,1,7,6],[8,1,8,6],[9,1,9,6],[10,1,10,6],[11,1,11,6]]}
["Touch Base-tracker",null,null,"Aanwijzingen"]
[null,"1. Bepaal in welke categorie uw contactpersoon valt:"]
[null,"• Vaste klanten: personen met wie u regelmatig contact wilt houden"]
[null,"• Incidentele klanten: personen met wie u een paar keer per jaar contact wilt"]
[null,"• Potentiële klanten: personen/bedrijven waarvan u de gegevens wilt bewaren om eventueel later contact op te nemen"]
[null,"2. Open het bijbehorende werkbladtabblad."]
[null,"3. Voer hun gegevens in (als u een nieuwe regel in een cel wilt maken, drukt u op Alt+Enter in Windows of Option+Return op een Mac)."]
[null,"Voor mobiele Excel-apps kijkt u hier voor instructies om een nieuwe regel te maken."]
[null,"4. Verwijder in de kolom Opvolgingsdatum de voorbeelddatum/-formule, voer in wanneer u contact met hen wilt opnemen \nen druk op Enter."]
[null,"5. De kolom Opvolgingsdatum wordt rood weergegeven wanneer de datum heel dichtbij is, geel wanneer deze nadert en \ngroen wanneer u nog meer dan genoeg tijd hebt."]
[null,"6. Naarmate de opvolgingsdatum dichterbij komt, wordt de kleur dienovereenkomstig gewijzigd."]
[null,"7. Wanneer u contact hebt opgenomen met uw contactpersoon, typt u JA in de kolom Voltooid? De datum wordt dan grijs weergegeven. "]
[null,"8. Als u opnieuw contact met hen wilt opnemen, vervangt u JA door NEE en typt u een nieuwe Opvolgingsdatum."]
[null,null,"Rood","Geel","Groen"]
[null,"Vaste klanten","Over 1-3 dagen","Over 4-7 dagen","Over 8-14+ dagen"]
[null,"Incidentele klanten","Over 1-7 dagen","Over 8-45 dagen","Over 46-90+ dagen"]
[null,"Potentiële klanten","Over 1-14 dagen","Over 15-60 dagen","Over 60-120+ dagen"]

{"sheet":"Vaste klanten","index":1,"n_rows":7,"n_cols":8,"rows_kept":7,"merged":[[0,0,0,2]]}
["Touch Base-tracker",null,null,"Vaste klanten"]
[]
["Naam","Bedrijf","Contactgegevens","Waar we elkaar hebben ontmoet","Notities","Opvolgingsdatum","Voltooid","Notities uit het gesprek"]
["Garth Fort","Adventure Works","Projectmanager\ngarth@adventure-works.com\n(234) 555-0134\nadventure-works.com\nlinkedin.com/in/garth-fort","Beurs 2010","Vraag naar dochter Sandy en hoe verbouwing gaat. Houdt niet van grote groepen en pittig eten.",{"$f":"TODAY()+8","v":"2021-07-21"},"NEE"]
["Naam","Bedrijfsnaam","Functie\nE-mailadres\nTelefoonnummer\nWebsite\nKoppelingen naar sociale profielen\n","Locatie","Voeg notities toe die u over deze persoon wilt onthouden: waar u elkaar hebt ontmoet, wat u hebt besproken, waar u de volgende keer over wilt praten, enzovoort.",{"$f":"TODAY()-3","v":"2021-07-10"},"JA"]
["Naam","Bedrijfsnaam","Functie\nE-mailadres\nTelefoonnummer\nWebsite\nKoppelingen naar sociale profielen\n","Locatie","Voeg notities toe die u over deze persoon wilt onthouden: waar u elkaar hebt ontmoet, wat u hebt besproken, waar u de volgende keer over wilt praten, enzovoort.",{"$f":"TODAY()+-3","v":"2021-07-10"},"NEE"]
["Naam","Bedrijfsnaam","Functie\nE-mailadres\nTelefoonnummer\nWebsite\nKoppelingen naar sociale profielen\n","Locatie","Voeg notities toe die u over deze persoon wilt onthouden: waar u elkaar hebt ontmoet, wat u hebt besproken, waar u de volgende keer over wilt praten, enzovoort.",{"$f":"TODAY()+6","v":"2021-07-19"},"NEE"]

{"sheet":"Incidentele klanten","index":2,"n_rows":7,"n_cols":8,"rows_kept":7,"merged":[[0,0,0,2]]}
["Touch Base-tracker",null,null,"Incidentele klanten"]
[]
["Naam","Bedrijf","Contactgegevens","Waar we elkaar hebben ontmoet","Notities","Opvolgingsdatum","Voltooid","Notities uit het gesprek"]
["Garth Fort","Adventure Works","Resourcemanager\ngarth@adventure-works.com\n(434) 555-0123\nwww.adventure-works.com\nlinkedin.com/in/garth-fort","Vakantie in Vermont 2016","Handig voor zowel het aannemen van contactpersonen als marketingvragen",{"$f":"TODAY()+90","v":"2021-10-11"},"NEE"]
["Naam","Bedrijfsnaam","Functie\nE-mailadres\nTelefoonnummer\nWebsite\nKoppelingen naar sociale profielen\n","Locatie","Voeg notities toe die u over deze persoon wilt onthouden: waar u elkaar hebt ontmoet, wat u hebt besproken, waar u de volgende keer over wilt praten, enzovoort.",{"$f":"TODAY()-3","v":"2021-07-10"},"JA"]
["Naam","Bedrijfsnaam","Functie\nE-mailadres\nTelefoonnummer\nWebsite\nKoppelingen naar sociale profielen\n","Locatie","Voeg notities toe die u over deze persoon wilt onthouden: waar u elkaar hebt ontmoet, wat u hebt besproken, waar u de volgende keer over wilt praten, enzovoort.",{"$f":"TODAY()+-3","v":"2021-07-10"},"NEE"]
["Naam","Bedrijfsnaam","Functie\nE-mailadres\nTelefoonnummer\nWebsite\nKoppelingen naar sociale profielen\n","Locatie","Voeg notities toe die u over deze persoon wilt onthouden: waar u elkaar hebt ontmoet, wat u hebt besproken, waar u de volgende keer over wilt praten, enzovoort.",{"$f":"TODAY()+40","v":"2021-08-22"},"NEE"]

{"sheet":"Potentiële klanten","index":3,"n_rows":7,"n_cols":8,"rows_kept":7,"merged":[[0,0,0,2]]}
["Touch Base-tracker",null,null,"Potentiële klanten"]
[]
["Naam","Bedrijf","Contactgegevens","Waar we elkaar hebben ontmoet","Notities","Opvolgingsdatum","Voltooid","Notities uit het gesprek"]
["Garth Fort","Freelancer","Ontwerper\niemand@voorbeeld.com\n425-555-0123\nvoorbeeld.com\nlinkedin.com/in/garth-fort","Afstuderen zoon 2016","Recentelijk afgestudeerd - veel vaardigheden. Kan nuttig zijn voor toekomstige klanten.",{"$f":"TODAY()+89","v":"2021-10-10"},"NEE"]
["Naam","Bedrijfsnaam","Functie\nE-mailadres\nTelefoonnummer\nWebsite\nKoppelingen naar sociale profielen\n","Locatie","Voeg notities toe die u over deze persoon wilt onthouden: waar u elkaar hebt ontmoet, wat u hebt besproken, waar u de volgende keer over wilt praten, enzovoort.",{"$f":"TODAY()-3","v":"2021-07-10"},"JA"]
["Naam","Bedrijfsnaam","Functie\nE-mailadres\nTelefoonnummer\nWebsite\nKoppelingen naar sociale profielen\n","Locatie","Voeg notities toe die u over deze persoon wilt onthouden: waar u elkaar hebt ontmoet, wat u hebt besproken, waar u de volgende keer over wilt praten, enzovoort.",{"$f":"TODAY()+-3","v":"2021-07-10"},"NEE"]
["Naam","Bedrijfsnaam","Functie\nE-mailadres\nTelefoonnummer\nWebsite\nKoppelingen naar sociale profielen\n","Locatie","Voeg notities toe die u over deze persoon wilt onthouden: waar u elkaar hebt ontmoet, wat u hebt besproken, waar u de volgende keer over wilt praten, enzovoort.",{"$f":"TODAY()+30","v":"2021-08-12"},"NEE"]

{"sheet":"Q1-netwerkplan","index":4,"n_rows":20,"n_cols":6,"rows_kept":20,"merged":[[0,0,0,3],[2,0,2,3],[4,0,4,3],[14,5,17,5],[18,0,18,3]]}
["Plan voor netwerkuitbreiding"]
["Aanwijzingen"]
["Schrijf op hoe u van plan bent uw netwerk dit kwartaal uit te breiden (d.w.z. meer telefoongesprekken voeren, meer reizen enzovoort). Telkens wanneer u dan een nieuwe contactpersoon krijgt, wijzigt u het getal bij Werkelijke nieuwe contactpersonen om bij te houden en te zien hoe dicht u bij uw doel komt."]
[]
["Hoe ik van plan ben mijn netwerk dit kwartaal uit te breiden"]
["1. Meer telefoongesprekken voeren"]
["2. Meer reizen"]
[]
[]
[]
[]
[]
[]
["Doel voor nieuwe contactpersonen dit kwartaal","Deadline","Werkelijke nieuwe contactpersonen dit kwartaal","Resultaten"]
[20,{"$f":"TODAY()","v":"2021-07-13"},12,{"$f":"IF(tblGoals[[#This Row],[Doel voor nieuwe contactpersonen dit kwartaal]]>0,tblGoals[[#This Row],[Werkelijke nieuwe contactpersonen dit kwartaal]]/tblGoals[[#This Row],[Doel voor nieuwe contactpersonen dit kwartaal]],\"\")","v":{"v":0.6,"d":"60%"}},null,"0% - 25%\n26% - 50%\n51% - 75%\n76% - 100%\n\nKleur verandert op basis van bereikt percentage"]
[{"$nulls":3},{"$f":"IF(tblGoals[[#This Row],[Doel voor nieuwe contactpersonen dit kwartaal]]>0,tblGoals[[#This Row],[Werkelijke nieuwe contactpersonen dit kwartaal]]/tblGoals[[#This Row],[Doel voor nieuwe contactpersonen dit kwartaal]],\"\")","v":""}]
[{"$nulls":3},{"$f":"IF(tblGoals[[#This Row],[Doel voor nieuwe contactpersonen dit kwartaal]]>0,tblGoals[[#This Row],[Werkelijke nieuwe contactpersonen dit kwartaal]]/tblGoals[[#This Row],[Doel voor nieuwe contactpersonen dit kwartaal]],\"\")","v":""}]
[]
["Beschouwing van resultaat / Notities voor verbetering"]
["Bijna gehaald. Probeer rond lunchtijd te bellen."]

{"sheet":"Q2-netwerkplan","index":5,"n_rows":20,"n_cols":6,"rows_kept":20,"merged":[[0,0,0,3],[2,0,2,3],[4,0,4,3],[14,5,17,5],[18,0,18,3]]}
["Plan voor netwerkuitbreiding"]
["Aanwijzingen"]
["Schrijf op hoe u van plan bent uw netwerk dit kwartaal uit te breiden (d.w.z. meer telefoongesprekken voeren, meer reizen enzovoort). Telkens wanneer u dan een nieuwe contactpersoon krijgt, wijzigt u het getal bij Werkelijke nieuwe contactpersonen om bij te houden en te zien hoe dicht u bij uw doel komt."]
[]
["Hoe ik van plan ben mijn netwerk dit kwartaal uit te breiden"]
["1. Meer telefoongesprekken voeren"]
["2. Meer reizen"]
[]
[]
[]
[]
[]
[]
["Doel voor nieuwe contactpersonen dit kwartaal","Deadline","Werkelijke nieuwe contactpersonen dit kwartaal","Resultaten"]
[20,{"$f":"TODAY()","v":"2021-07-13"},12,{"$f":"IF(tblGoals3[[#This Row],[Doel voor nieuwe contactpersonen dit kwartaal]]>0,tblGoals3[[#This Row],[Werkelijke nieuwe contactpersonen dit kwartaal]]/tblGoals3[[#This Row],[Doel voor nieuwe contactpersonen dit kwartaal]],\"\")","v":{"v":0.6,"d":"60%"}},null,"0% - 25%\n26% - 50%\n51% - 75%\n76% - 100%\n\nKleur verandert op basis van bereikt percentage"]
[{"$nulls":3},{"$f":"IF(tblGoals3[[#This Row],[Doel voor nieuwe contactpersonen dit kwartaal]]>0,tblGoals3[[#This Row],[Werkelijke nieuwe contactpersonen dit kwartaal]]/tblGoals3[[#This Row],[Doel voor nieuwe contactpersonen dit kwartaal]],\"\")","v":""}]
[{"$nulls":3},{"$f":"IF(tblGoals3[[#This Row],[Doel voor nieuwe contactpersonen dit kwartaal]]>0,tblGoals3[[#This Row],[Werkelijke nieuwe contactpersonen dit kwartaal]]/tblGoals3[[#This Row],[Doel voor nieuwe contactpersonen dit kwartaal]],\"\")","v":""}]
[]
["Beschouwing van resultaat / Notities voor verbetering"]
["Bijna gehaald. Probeer rond lunchtijd te bellen."]

{"sheet":"Q3-netwerkplan","index":6,"n_rows":20,"n_cols":6,"rows_kept":20,"merged":[[0,0,0,3],[2,0,2,3],[4,0,4,3],[14,5,17,5],[18,0,18,3]]}
["Plan voor netwerkuitbreiding"]
["Aanwijzingen"]
["Schrijf op hoe u van plan bent uw netwerk dit kwartaal uit te breiden (d.w.z. meer telefoongesprekken voeren, meer reizen enzovoort). Telkens wanneer u dan een nieuwe contactpersoon krijgt, wijzigt u het getal bij Werkelijke nieuwe contactpersonen om bij te houden en te zien hoe dicht u bij uw doel komt."]
[]
["Hoe ik van plan ben mijn netwerk dit kwartaal uit te breiden"]
["1. Meer telefoongesprekken voeren"]
["2. Meer reizen"]
[]
[]
[]
[]
[]
[]
["Doel voor nieuwe contactpersonen dit kwartaal","Deadline","Werkelijke nieuwe contactpersonen dit kwartaal","Resultaten"]
[20,{"$f":"TODAY()","v":"2021-07-13"},12,{"$f":"IF(tblGoals34[[#This Row],[Doel voor nieuwe contactpersonen dit kwartaal]]>0,tblGoals34[[#This Row],[Werkelijke nieuwe contactpersonen dit kwartaal]]/tblGoals34[[#This Row],[Doel voor nieuwe contactpersonen dit kwartaal]],\"\")","v":{"v":0.6,"d":"60%"}},null,"0% - 25%\n26% - 50%\n51% - 75%\n76% - 100%\n\nKleur verandert op basis van bereikt percentage"]
[{"$nulls":3},{"$f":"IF(tblGoals34[[#This Row],[Doel voor nieuwe contactpersonen dit kwartaal]]>0,tblGoals34[[#This Row],[Werkelijke nieuwe contactpersonen dit kwartaal]]/tblGoals34[[#This Row],[Doel voor nieuwe contactpersonen dit kwartaal]],\"\")","v":""}]
[{"$nulls":3},{"$f":"IF(tblGoals34[[#This Row],[Doel voor nieuwe contactpersonen dit kwartaal]]>0,tblGoals34[[#This Row],[Werkelijke nieuwe contactpersonen dit kwartaal]]/tblGoals34[[#This Row],[Doel voor nieuwe contactpersonen dit kwartaal]],\"\")","v":""}]
[]
["Beschouwing van resultaat / Notities voor verbetering"]
["Bijna gehaald. Probeer rond lunchtijd te bellen."]

{"sheet":"Q4-netwerkplan","index":7,"n_rows":20,"n_cols":6,"rows_kept":20,"merged":[[0,0,0,3],[2,0,2,3],[4,0,4,3],[14,5,17,5],[18,0,18,3]]}
["Plan voor netwerkuitbreiding"]
["Aanwijzingen"]
["Schrijf op hoe u van plan bent uw netwerk dit kwartaal uit te breiden (d.w.z. meer telefoongesprekken voeren, meer reizen enzovoort). Telkens wanneer u dan een nieuwe contactpersoon krijgt, wijzigt u het getal bij Werkelijke nieuwe contactpersonen om bij te houden en te zien hoe dicht u bij uw doel komt."]
[]
["Hoe ik van plan ben mijn netwerk dit kwartaal uit te breiden"]
["1. Meer telefoongesprekken voeren"]
["2. Meer reizen"]
[]
[]
[]
[]
[]
[]
["Doel voor nieuwe contactpersonen dit kwartaal","Deadline","Werkelijke nieuwe contactpersonen dit kwartaal","Resultaten"]
[20,{"$f":"TODAY()","v":"2021-07-13"},12,{"$f":"IF(tblGoals348[[#This Row],[Doel voor nieuwe contactpersonen dit kwartaal]]>0,tblGoals348[[#This Row],[Werkelijke nieuwe contactpersonen dit kwartaal]]/tblGoals348[[#This Row],[Doel voor nieuwe contactpersonen dit kwartaal]],\"\")","v":{"v":0.6,"d":"60%"}},null,"0% - 25%\n26% - 50%\n51% - 75%\n76% - 100%\n\nKleur verandert op basis van bereikt percentage"]
[{"$nulls":3},{"$f":"IF(tblGoals348[[#This Row],[Doel voor nieuwe contactpersonen dit kwartaal]]>0,tblGoals348[[#This Row],[Werkelijke nieuwe contactpersonen dit kwartaal]]/tblGoals348[[#This Row],[Doel voor nieuwe contactpersonen dit kwartaal]],\"\")","v":""}]
[{"$nulls":3},{"$f":"IF(tblGoals348[[#This Row],[Doel voor nieuwe contactpersonen dit kwartaal]]>0,tblGoals348[[#This Row],[Werkelijke nieuwe contactpersonen dit kwartaal]]/tblGoals348[[#This Row],[Doel voor nieuwe contactpersonen dit kwartaal]],\"\")","v":""}]
[]
["Beschouwing van resultaat / Notities voor verbetering"]
["Bijna gehaald. Probeer rond lunchtijd te bellen."]